bitfinex/quotes_ETHUSD_20251214
["timestamp","ask_amount","ask_price","bid_price","bid_amount"]
[1765754341347,0.519,3064.2,3064.1,0.8233]
[1765754342305,0.001,3064.6,3064.1,7.75952916]
[1765754342581,0.519,3064.3,3064.2,0.3276]
[1765754342993,0.519,3064.3,3064.2,0.6552]
[1765754343711,0.001,3064.6,3064.2,0.6552]
[1765754343712,0.519,3064.4,3064.2,0.6552]
[1765754343897,0.519,3064.4,3064.3,0.3276]
[1765754344099,0.519,3064.4,3064.3,0.6552]
[1765754344298,0.519,3064.4,3064.3,3.91858804]
[1765754345433,0.519,3064.4,3064.3,0.6552]
[1765754345605,0.519,3064.4,3064.3,3.91858804]
[1765754346932,0.519,3064.4,3064.3,0.6552]
[1765754347429,0.519,3064.4,3064.3,0.3276]
[1765754347999,4.62107919,3064.4,3064.1,0.1681]
[1765754348196,0.49276859,3064.2,3064.1,0.002]
[1765754348620,0.96276859,3064.2,3064.1,0.002]
[1765754349025,4.63176713,3064.2,3064.1,0.002]
[1765754349414,0.519,3064.2,3064.1,0.3296]
[1765754349728,1.26535375,3064.2,3064.1,0.002]
[1765754349949,1.72225375,3064.2,3064.1,0.002]
[1765754350154,2.32225375,3064.2,3064.1,0.002]
[1765754350508,1.86535375,3064.2,3064.1,0.3296]
[1765754351139,0.6,3064.2,3064.1,0.4957]
[1765754351305,1.119,3064.2,3064.1,0.8233]
[1765754352039,0.6,3064.2,3064.1,0.8233]
[1765754352203,0.519,3064.2,3064.1,4.08690105]
[1765754352519,0.519,3064.2,3064.1,0.8233]
[1765754353550,0.001,3064.6,3064.1,0.8233]
[1765754353551,0.001,3064.6,3064.1,4.49600034]
[1765754353711,0.52,3064.6,3064.5,0.3276]
[1765754354338,0.52,3064.6,3064.1,0.1681]
[1765754354339,4.23996858,3064.6,3064.1,0.1681]
[1765754354510,0.9769,3064.6,3064.1,0.1681]
[1765754354710,3.78306858,3064.6,3064.5,0.3276]
[1765754354945,3.26406858,3064.6,3064.5,0.3276]
[1765754355243,0.001,3064.6,3064.5,0.3276]
[1765754355444,0.001,3065.9,3064.5,4.49885035]
[1765754355616,0.52,3065.7,3064.6,1.03036033]
[1765754355822,0.52,3065.7,3064.6,1.35696033]
[1765754356022,0.52,3065.7,3065.6,0.3266]
[1765754358507,0.521,3065.7,3065.6,0.3266]
[1765754365547,4.70979777,3065.7,3064.9,0.3266]
[1765754365949,4.70979777,3065.7,3065.6,0.3266]
[1765754365950,0.521,3065.7,3065.6,0.3266]
[1765754368344,0.521,3065.7,3064.9,0.3266]
[1765754368345,7.99479554,3065.7,3064.9,0.3266]
[1765754368545,0.03586859,3065.6,3064.9,3.26267041]
[1765754368749,0.03586859,3065.6,3065.0,3.26263851]
[1765754369049,0.03586859,3065.6,3065.0,3.58923851]
[1765754369744,3.29787507,3065.6,3065.0,3.58923851]
[1765754369922,0.03586859,3065.6,3065.0,3.58923851]
[1765754370247,0.03586859,3065.6,3065.5,0.3266]
[1765754373021,3.78290779,3065.7,3065.5,0.3266]
[1765754373331,0.001,3065.7,3065.6,0.6532]
[1765754373532,0.52,3065.7,3065.6,0.6532]
[1765754373946,0.001,3065.7,3065.6,0.6532]
[1765754374116,0.52,3065.7,3065.6,0.6532]
[1765754375270,0.52,3065.7,3064.9,3.84315135]
[1765754375271,0.52,3065.7,3064.9,3.26270959]
[1765754375272,4.26779777,3065.7,3064.9,3.26270959]
[1765754375564,0.4859,3065.6,3064.9,3.26270959]
[1765754375718,0.4859,3065.6,3065.0,0.3266]
[1765754376853,0.58147529,3065.7,3065.5,0.3266]
[1765754377036,0.519,3065.6,3065.5,0.3266]
[1765754377747,0.001,3065.7,3065.5,0.3266]
[1765754377947,0.519,3065.6,3065.1,3.26253325]
[1765754378341,0.519,3065.6,3065.1,3.58913325]
[1765754379457,0.519,3065.6,3065.5,0.3266]
[1765754380325,0.519,3065.6,3065.2,0.3266]
[1765754380552,0.519,3065.6,3065.5,0.3266]
[1765754382966,0.519,3065.6,3065.2,0.3266]
[1765754383264,0.519,3065.6,3064.5,0.58247529]
[1765754383265,4.741522,3065.6,3064.9,3.58925496]
[1765754383460,0.03586859,3065.5,3064.9,3.58925496]
[1765754384566,0.46511765,3065.5,3064.9,6.85200415]
[1765754384764,0.55486859,3065.6,3065.4,0.3266]
[1765754385068,0.55486859,3065.6,3065.0,0.3266]
[1765754385267,3.81693204,3065.6,3065.0,0.3266]
[1765754385442,4.2498721,3065.6,3065.0,0.3266]
[1765754386347,4.2498721,3065.6,3065.0,3.26262963]
[1765754386554,0.03586859,3065.4,3065.0,3.26262963]
[1765754386749,0.55486859,3065.6,3065.0,3.26262963]
[1765754387075,0.55486859,3065.6,3065.5,0.3266]
[1765754387076,0.519,3065.6,3065.5,0.3266]
[1765754388894,0.001,3065.7,3065.5,3.58870214]
[1765754389047,0.001,3065.7,3065.1,3.44944791]
[1765754389048,0.52,3065.7,3065.6,0.6532]
[1765754390172,0.52,3065.7,3065.6,0.3266]
[1765754390949,1.0059,3065.7,3065.3,3.26228969]
[1765754391145,0.52,3065.7,3065.6,0.3266]
[1765754393581,0.52,3065.7,3065.6,0.6532]
[1765754393907,0.52,3065.7,3065.6,0.3266]
[1765754394989,0.52,3065.7,3065.6,3.91520417]
[1765754395152,0.52,3065.7,3065.6,1.37094205]
[1765754395682,0.52,3065.7,3065.6,0.6532]
[1765754396684,0.52,3065.7,3065.3,3.26228575]
[1765754396887,0.52,3065.7,3065.2,0.3266]
[1765754396888,0.52,3065.7,3065.2,3.26240112]
[1765754397188,0.9835,3065.7,3065.2,3.26240112]
[1765754398083,0.52,3065.7,3065.2,3.26240112]
[1765754398385,0.9835,3065.7,3065.2,3.26240112]
[1765754399089,4.24545155,3065.7,3065.1,3.26252302]
[1765754399895,0.03586859,3065.4,3064.9,3.26271897]
[1765754400088,0.519,3065.3,3064.9,3.26271897]
[1765754400482,0.519,3065.3,3065.0,3.26262706]
[1765754401177,0.519,3065.3,3065.2,0.3266]
[1765754401355,0.001,3065.7,3065.2,0.3266]
[1765754401565,0.001,3065.7,3065.6,0.3266]
[1765754401756,0.52,3065.7,3065.6,0.3266]
[1765754401993,0.52,3065.7,3065.6,0.6532]
[1765754402365,0.001,3065.7,3065.6,0.6532]
[1765754402562,0.52,3065.7,3065.6,0.6532]
[1765754402789,0.001,3065.7,3065.6,0.6532]
[1765754403094,0.001,3065.7,3065.6,4.73097296]
[1765754403263,0.001,3065.8,3065.7,3.85495191]
[1765754403466,0.001,3066.6,3065.8,0.3236]
[1765754403660,0.001,3066.6,3066.5,0.4811]
[1765754404371,0.001,3066.6,3066.5,0.3236]
[1765754404765,0.4867,3066.6,3065.9,0.3236]
[1765754405207,0.001,3066.6,3066.1,0.58047529]
[1765754405363,0.001,3066.6,3066.2,0.71036325]
[1765754405566,0.001,3066.6,3066.5,0.3236]
[1765754408079,0.52,3066.6,3066.5,0.3236]
[1765754410371,0.52,3066.6,3065.6,0.41026479]
[1765754410372,1.0057,3066.6,3065.6,0.41026479]
[1765754410572,0.52156859,3066.4,3065.6,0.41026479]
[1765754410777,1.32426541,3066.4,3065.6,3.26200136]
[1765754410976,1.75189682,3066.4,3065.6,3.26200136]
[1765754411991,0.4635,3066.3,3065.6,3.26200136]
[1765754412367,0.519,3066.2,3065.6,3.26200136]
[1765754414080,0.9825,3066.2,3065.6,3.26200136]
[1765754414507,0.519,3066.2,3065.6,6.52400553]
[1765754414911,0.519,3066.2,3065.6,7.22471608]
[1765754415098,0.519,3066.2,3065.6,3.26200136]
[1765754415406,0.4635,3066.1,3065.5,0.002]
[1765754415613,0.4635,3066.1,3065.5,3.26410453]
[1765754416384,3.72498351,3066.1,3065.5,0.002]
[1765754416584,0.4635,3066.0,3065.5,0.002]
[1765754419014,0.519,3066.2,3065.9,0.3236]
[1765754419377,0.4857,3066.0,3065.5,0.58247529]
[1765754419782,0.9492,3066.0,3065.5,0.58247529]
[1765754421101,0.9492,3066.0,3065.5,3.26407956]
[1765754421610,0.1991,3065.9,3065.5,0.002]
[1765754421911,0.4857,3065.6,3065.5,0.002]
[1765754422794,0.91364399,3065.8,3065.5,0.002]
[1765754423292,0.4857,3065.6,3065.5,0.002]
[1765754423686,1.0047,3065.6,3065.5,0.002]
[1765754424018,1.98412393,3065.6,3065.5,0.002]
[1765754424385,3.06161962,3065.6,3065.5,0.002]
[1765754425218,6.32362379,3065.6,3065.5,0.002]
[1765754425723,6.93996767,3065.6,3065.5,0.002]
[1765754427224,10.3902371,3065.6,3065.5,0.002]
[1765754428486,7.30960308,3065.6,3065.5,0.002]
[1765754428691,10.75987251,3065.6,3065.5,0.002]
[1765754429897,23.97614194,3065.6,3065.5,0.002]
[1765754431224,3.436,3065.4,3064.5,0.002]
[1765754431457,7.8209106,3064.6,3064.5,0.002]
[1765754431631,8.92038589,3064.6,3064.5,0.002]
[1765754431822,9.37948589,3064.6,3064.5,0.002]
[1765754432195,9.51014271,3064.6,3064.5,0.002]
[1765754434738,12.96041214,3064.6,3064.5,0.002]
[1765754435030,14.06733533,3064.6,3064.5,0.002]
[1765754435201,14.58633533,3064.6,3064.5,0.002]
[1765754435405,12.17580999,3064.6,3064.5,0.002]
[1765754438138,0.886004,3064.4,3064.3,1e-08]
[1765754438313,6.30951729,3064.4,3064.3,1e-08]
[1765754438514,13.09861729,3064.4,3064.3,1e-08]
[1765754440735,13.22930912,3064.4,3064.3,1e-08]
[1765754440938,13.74830912,3064.4,3064.3,1e-08]
[1765754443518,13.71244053,3064.4,3064.3,1e-08]
[1765754448619,13.19344053,3064.4,3064.3,1e-08]
[1765754448819,11.26786124,3064.4,3064.3,1e-08]
[1765754449023,11.26786124,3064.4,3064.3,0.32360001]
[1765754449312,10.82344867,3064.4,3064.3,0.32360001]
[1765754450352,11.76304867,3064.4,3064.3,1e-08]
[1765754450535,12.16855267,3064.4,3064.3,1e-08]
[1765754452848,11.64955267,3064.4,3064.3,1e-08]
[1765754453033,12.90158997,3064.4,3064.3,1e-08]
[1765754453214,13.42058997,3064.4,3064.3,1e-08]
[1765754454318,13.82609397,3064.4,3064.3,1e-08]
[1765754455349,13.82709397,3064.4,3064.3,1e-08]
[1765754455648,17.2808777,3064.4,3064.3,1e-08]
[1765754456035,0.405504,3064.1,3063.9,0.002]
[1765754456242,0.405504,3064.1,3063.1,0.002]
[1765754456243,0.405504,3063.3,3063.1,0.002]
[1765754456548,5.43926302,3063.3,3063.1,0.002]
[1765754456716,9.20131638,3063.3,3063.1,0.002]
[1765754456917,10.5786209,3063.3,3063.1,0.002]
[1765754457352,10.0596209,3063.3,3063.1,0.002]
[1765754457558,7.12483717,3063.3,3063.1,0.002]
[1765754458167,7.12483717,3063.3,3062.1,0.002]
[1765754458168,0.4546,3063.2,3062.1,0.002]
[1765754458334,0.405504,3062.4,3062.1,0.002]
[1765754458530,1.044904,3062.2,3062.1,0.002]
[1765754458732,4.19013002,3062.2,3062.1,0.002]
[1765754458978,4.25160531,3062.2,3062.1,0.3336]
[1765754459265,4.77060531,3062.2,3062.1,0.3336]
[1765754460362,0.03586859,3062.3,3062.1,0.8307]
[1765754460672,0.519,3062.2,3062.1,0.4991]
[1765754460871,0.519,3062.2,3062.1,0.1675]
[1765754461072,3.3008837,3062.8,3062.1,3.76483266]
[1765754461253,3.3008837,3062.8,3062.7,0.3316]
[1765754461441,4.40035899,3062.8,3062.7,0.3316]
[1765754461764,0.03586859,3062.8,3062.7,0.3316]
[1765754461962,0.03586859,3062.8,3062.7,0.6632]
[1765754462169,0.03586859,3063.2,3062.7,0.6632]
[1765754462475,0.03586859,3062.8,3062.5,0.3316]
[1765754462633,0.519,3062.7,3062.5,0.3316]
[1765754462838,0.03586859,3062.6,3062.5,0.3316]
[1765754463460,0.519,3062.7,3062.5,0.6632]
[1765754463767,0.519,3062.7,3062.6,0.3316]
[1765754463950,0.519,3062.7,3062.6,0.6632]
[1765754465148,0.58047529,3063.1,3062.6,0.6632]
[1765754465347,0.55486859,3063.0,3062.3,3.26548443]
[1765754465566,0.03586859,3062.9,3062.4,0.3316]
[1765754465868,0.03586859,3062.7,3062.4,0.3316]
[1765754466058,0.519,3062.6,3062.4,0.3316]
[1765754466443,0.519,3062.6,3062.5,0.3316]
[1765754467376,0.519,3062.6,3062.5,0.6632]
[1765754469149,0.55486859,3062.6,3062.5,0.6632]
[1765754469944,0.519,3062.6,3062.5,0.6632]
[1765754472767,3.7841995,3062.6,3062.1,0.1675]
[1765754472970,0.519,3062.6,3062.5,0.3316]
[1765754473172,7.46726984,3062.6,3062.1,0.1675]
[1765754473493,7.46726984,3062.6,3062.1,0.4991]
[1765754473786,0.03586859,3062.2,3062.1,0.002]
[1765754474001,0.55486859,3062.2,3062.1,0.002]
[1765754474154,0.55486859,3062.2,3062.1,0.3336]
[1765754475585,4.27509461,3062.2,3062.1,0.002]
[1765754475751,5.93584596,3062.2,3062.1,0.002]
[1765754475950,6.51632125,3062.2,3062.1,0.002]
[1765754478764,9.95232125,3062.2,3062.1,0.002]
[1765754479158,9.43332125,3062.2,3062.1,0.002]
[1765754479391,5.99732125,3062.2,3062.1,0.002]
[1765754479597,6.51632125,3062.2,3062.1,0.002]
[1765754480683,5.99732125,3062.2,3062.1,0.002]
[1765754480887,6.51732125,3062.2,3062.1,0.002]
[1765754482668,5.49972125,3062.2,3062.1,0.002]
[1765754482872,3.30149461,3062.2,3062.1,0.002]
[1765754483079,0.03586859,3062.2,3062.1,0.8307]
[1765754483278,0.03586859,3062.4,3062.1,0.8307]
[1765754483488,0.03586859,3062.6,3062.3,0.3316]
[1765754483809,0.03586859,3062.6,3062.5,0.3316]
[1765754484101,0.55586859,3062.6,3062.5,0.3316]
[1765754484304,4.40154338,3062.6,3062.5,0.3316]
[1765754485102,0.52,3062.6,3062.5,0.6632]
[1765754485589,3.82106809,3062.6,3062.5,0.6632]
[1765754485785,3.30106809,3062.6,3062.5,0.6632]
[1765754485966,0.55586859,3062.6,3062.5,0.6652]
[1765754486169,3.82106809,3062.6,3062.5,0.3336]
[1765754486364,3.82106809,3062.6,3062.5,0.002]
[1765754486365,5.39337011,3062.6,3062.5,0.002]
[1765754486570,5.85397011,3062.6,3062.5,0.002]
[1765754486867,5.39337011,3062.6,3062.5,0.002]
[1765754487187,6.4344454,3062.6,3062.5,0.002]
[1765754487905,0.98597929,3062.5,3062.1,0.002]
[1765754488076,0.90967259,3062.2,3062.1,0.002]
[1765754488276,1.42967259,3062.2,3062.1,0.002]
[1765754488486,1.89027259,3062.2,3062.1,0.002]
[1765754490005,8.59189861,3062.2,3062.1,0.002]
[1765754490505,9.1723739,3062.2,3062.1,0.002]
[1765754490676,10.62051389,3062.2,3062.1,0.002]
[1765754496918,10.10051389,3062.2,3062.1,0.002]
[1765754497224,10.62051389,3062.2,3062.1,0.002]
[1765754497893,7.18451389,3062.2,3062.1,0.002]
[1765754499928,7.18531389,3062.2,3062.1,0.002]
[1765754500333,6.66531389,3062.2,3062.1,0.002]
[1765754500507,6.72391389,3062.2,3062.1,0.002]
[1765754500695,6.25561389,3062.2,3062.1,0.002]
[1765754500894,5.73561389,3062.2,3062.1,0.002]
[1765754501128,5.6751386,3062.2,3062.1,0.3356]
[1765754501296,6.25561389,3062.2,3062.1,0.3356]
[1765754501992,6.72541389,3062.2,3062.1,0.002]
[1765754502189,6.25561389,3062.2,3062.1,0.002]
[1765754503028,6.72541389,3062.2,3062.1,0.002]
[1765754503905,5.2942413,3062.2,3062.1,0.5031]
[1765754504109,0.52,3062.2,3062.1,0.8367]
[1765754505535,3.30146877,3062.3,3062.1,0.8367]
[1765754505698,3.26544612,3062.4,3062.2,0.6672]
[1765754505905,0.001,3062.5,3062.3,0.3336]
[1765754506104,0.001,3062.5,3062.4,0.6672]
[1765754506501,0.521,3062.5,3062.4,0.6672]
[1765754507121,0.521,3062.5,3062.4,0.3336]
[1765754507322,0.521,3062.5,3062.1,0.1695]
[1765754507323,0.405504,3062.4,3062.1,0.1695]
[1765754507623,0.03586859,3062.2,3062.1,0.1695]
[1765754507828,0.50566859,3062.2,3062.1,0.002]
[1765754508024,3.77129461,3062.2,3062.1,0.002]
[1765754508330,4.47856163,3062.2,3062.1,0.002]
[1765754508530,4.00876163,3062.2,3062.1,0.002]
[1765754508741,4.00876163,3062.2,3062.1,0.5031]
[1765754509038,3.78562602,3062.2,3062.1,0.8367]
[1765754509836,3.78562602,3062.2,3062.1,0.5031]
[1765754510011,4.83590131,3062.2,3062.1,0.002]
[1765754510415,4.36610131,3062.2,3062.1,0.002]
[1765754510610,4.36610131,3062.2,3062.1,0.5031]
[1765754511035,4.36610131,3062.2,3062.1,0.3356]
[1765754511314,5.132849,3062.2,3062.1,0.3356]
[1765754512009,5.132849,3062.2,3062.1,0.5031]
[1765754512635,4.36610131,3062.2,3062.1,0.8367]
[1765754513633,4.36610131,3062.2,3062.1,0.5031]
[1765754516513,0.03686859,3062.5,3062.1,0.8367]
[1765754516514,0.001,3062.5,3062.1,0.8367]
[1765754516717,0.001,3062.5,3062.4,0.3336]
[1765754516718,3.78630612,3062.5,3062.4,0.3336]
[1765754517216,3.78630612,3062.5,3062.4,0.6672]
[1765754518120,3.78630612,3062.5,3062.4,0.3336]
[1765754518318,3.78630612,3062.5,3062.4,0.6672]
[1765754521252,7.05161224,3062.5,3062.1,0.1695]
[1765754521591,3.78630612,3062.5,3062.4,0.3336]
[1765754521921,3.78630612,3062.5,3062.4,0.6672]
[1765754522770,0.001,3062.5,3062.4,0.6672]
[1765754523055,0.001,3062.5,3062.4,3.93261274]
[1765754523237,0.001,3062.5,3062.4,4.65242685]
[1765754523766,0.001,3062.5,3062.4,1.38701411]
[1765754523923,0.001,3062.5,3062.4,0.6672]
[1765754524117,0.001,3062.5,3062.4,3.93261274]
[1765754525663,0.001,3062.5,3062.4,0.6672]
[1765754525864,0.001,3062.5,3062.4,3.93261274]
[1765754526582,0.001,3062.5,3062.4,4.51308803]
[1765754526731,0.001,3062.5,3062.4,5.29095679]
[1765754527073,0.001,3062.5,3062.4,5.69646079]
[1765754537881,0.001,3062.5,3062.4,5.69846079]
[1765754540861,0.001,3062.5,3062.4,9.73540479]
[1765754541884,0.001,3062.5,3062.4,23.02794079]
[1765754542395,0.001,3062.5,3062.4,16.75050879]
[1765754542903,0.001,3062.5,3062.4,21.93254579]
[1765754543265,0.001,3062.5,3062.4,25.77254579]
[1765754543567,0.001,3062.5,3062.4,29.51389573]
[1765754544008,0.001,3062.5,3062.4,43.27981073]
[1765754544237,0.001,3062.5,3062.4,42.97446079]
[1765754544818,0.001,3062.5,3062.4,12.97446079]
[1765754545018,0.001,3062.5,3062.4,42.97446079]
[1765754545429,0.001,3062.5,3062.4,39.53846079]
[1765754546821,0.001,3062.5,3062.4,42.97446079]
[1765754547344,0.001,3062.5,3062.4,45.63097081]
[1765754548907,0.001,3062.5,3062.4,42.97446079]
[1765754549106,0.001,3062.5,3062.4,21.78629479]
[1765754550008,0.001,3062.5,3062.4,23.60101279]
[1765754550204,0.001,3062.5,3062.4,13.3292725]
[1765754550422,0.001,3062.5,3062.4,5.2314815]
[1765754550720,0.001,3062.5,3062.4,6.21746079]
[1765754551751,0.001,3062.5,3062.4,5.81195679]
[1765754552129,0.001,3062.5,3062.4,6.21746079]
[1765754554356,0.001,3062.5,3062.4,5.69846079]
[1765754554655,0.001,3062.5,3062.4,6.21746079]
[1765754555158,0.001,3062.5,3062.4,10.05746079]
[1765754556356,0.001,3062.5,3062.4,9.72386079]
[1765754557825,0.001,3062.5,3062.4,10.05746079]
[1765754561048,0.001,3062.5,3062.4,6.21746079]
[1765754561679,0.001,3062.5,3062.4,5.88386079]
[1765754561993,0.001,3062.5,3062.4,4.36688803]
[1765754562292,0.001,3062.5,3062.4,5.10599203]
[1765754567992,0.001,3062.5,3062.4,5.43959203]
[1765754570475,0.001,3062.5,3062.4,5.10599203]
[1765754572909,0.001,3062.5,3062.4,8.94599203]
[1765754574005,0.001,3062.5,3062.4,10.52706389]
[1765754577491,0.4987,3062.5,3062.4,10.19346389]
[1765754577692,0.4987,3062.5,3062.4,8.61239203]
[1765754578004,0.9732,3062.5,3062.4,8.61239203]
[1765754578511,0.001,3062.5,3062.4,8.94599203]
[1765754578910,0.001,3062.5,3062.4,5.10599203]
[1765754580311,0.001,3062.5,3062.4,5.43959203]
[1765754580613,0.001,3062.5,3062.4,7.02066389]
[1765754581892,0.001,3062.5,3062.4,44.31526058]
[1765754582093,0.001,3062.5,3062.4,48.4408869]
[1765754582294,0.001,3063.0,3062.9,37.87657598]
[1765754582513,0.001,3063.0,3062.9,38.72817598]
[1765754582711,0.001,3063.0,3062.9,43.48758996]
[1765754582919,0.001,3063.0,3062.9,6.59699327]
[1765754583126,0.001,3063.0,3062.9,36.59699327]
[1765754583795,0.001,3063.0,3062.9,37.2746785]
[1765754584031,0.001,3063.0,3062.9,36.64699327]
[1765754584794,0.001,3063.0,3062.9,36.59699327]
[1765754584998,0.001,3063.0,3062.9,6.59699327]
[1765754585555,0.001,3063.0,3062.9,6.26439327]
[1765754585835,0.001,3063.0,3062.9,3.78387968]
[1765754585836,0.9732,3063.0,3062.9,3.78387968]
[1765754586029,0.001,3063.0,3062.9,4.36435497]
[1765754586390,0.001,3063.0,3062.9,4.76985897]
[1765754586630,0.4987,3063.0,3062.9,4.36435497]
[1765754586793,0.4987,3063.0,3062.9,4.76985897]
[1765754586995,0.4987,3063.0,3062.9,5.57334467]
[1765754587526,0.001,3063.0,3062.9,5.57334467]
[1765754587700,0.001,3063.0,3062.9,5.90594467]
[1765754588330,0.001,3063.0,3062.9,5.57334467]
[1765754589194,0.001,3063.0,3062.9,3.84535497]
[1765754589195,0.9732,3063.0,3062.9,3.84535497]
[1765754590155,0.4987,3063.0,3062.9,4.25085897]
[1765754590361,0.001,3063.0,3062.9,4.25085897]
[1765754590590,0.9732,3063.0,3062.9,4.25085897]
[1765754591352,0.9732,3063.0,3062.9,5.00244468]
[1765754593128,0.9732,3063.0,3062.9,4.59694068]
[1765754593405,0.9732,3063.0,3062.9,3.84535497]
[1765754594703,0.001,3063.0,3062.9,4.58345897]
[1765754597573,0.001,3063.0,3062.9,5.43505897]
[1765754598073,0.001,3063.0,3062.9,5.10245897]
[1765754598885,0.001,3063.0,3062.9,4.76985897]
[1765754599083,0.9732,3063.0,3062.9,4.25085897]
[1765754599377,0.4987,3063.0,3062.9,4.25085897]
[1765754599778,0.001,3063.0,3062.9,4.25085897]
[1765754601004,0.4987,3063.0,3062.9,4.25085897]
[1765754604516,0.001,3063.0,3062.9,4.25085897]
[1765754604714,0.001,3063.0,3062.9,5.71904468]
[1765754605523,0.001,3063.0,3062.9,6.05164468]
[1765754605815,0.001,3063.0,3062.9,5.71904468]
[1765754607207,0.001,3063.0,3062.9,14.85459568]
[1765754607414,0.001,3063.0,3062.9,5.90544468]
[1765754607415,0.4517,3063.0,3062.9,5.90544468]
[1765754607599,0.9168,3063.0,3062.9,4.25085897]
[1765754608632,0.9168,3063.0,3062.9,3.84535497]
[1765754608936,0.9168,3063.0,3062.5,0.002]
[1765754608937,4.37107004,3063.0,3062.5,0.002]
[1765754609108,0.4507,3062.6,3062.5,0.002]
[1765754609630,0.9158,3062.6,3062.5,0.002]
[1765754610735,1.352807,3062.6,3062.5,0.002]
[1765754610934,4.6180065,3062.6,3062.5,0.002]
[1765754611937,1.4348,3062.6,3062.5,0.002]
[1765754612434,0.9158,3062.6,3062.5,0.002]
[1765754612834,0.4507,3062.6,3062.5,0.002]
[1765754622034,0.52,3063.0,3062.6,0.405504]
[1765754622035,0.001,3063.0,3062.6,0.405504]
[1765754622342,0.001,3063.0,3062.8,0.405504]
[1765754624332,0.001,3063.0,3062.9,3.76067968]
[1765754624538,0.001,3063.0,3062.9,4.74665897]
[1765754624733,0.001,3063.0,3062.9,5.22985897]
[1765754624950,0.001,3063.0,3062.9,4.74665897]
[1765754625146,0.001,3063.0,3062.9,6.0558841]
[1765754628167,0.001,3063.0,3062.9,5.5726841]
[1765754628529,0.4517,3063.0,3062.9,5.0768841]
[1765754629859,0.001,3063.0,3062.9,5.0768841]
[1765754630529,0.001,3063.0,3062.9,5.5726841]
[1765754633959,0.001,3063.0,3062.9,6.0558841]
[1765754635351,0.001,3063.0,3062.9,9.8958841]
[1765754636671,0.001,3063.0,3062.9,9.4126841]
[1765754638377,0.001,3063.0,3062.9,8.9885801]
[1765754638735,0.001,3063.0,3062.9,9.3940841]
[1765754639735,0.001,3063.0,3062.9,9.8460841]
[1765754640274,0.001,3063.0,3062.9,6.0060841]
[1765754640572,0.001,3063.8,3063.0,30.98597929]
[1765754640776,0.001,3063.8,3063.7,1.078604]
[1765754640978,0.001,3063.8,3063.7,1.597604]
[1765754641273,0.001,3063.8,3063.7,2.049604]
[1765754641441,0.001,3063.8,3063.7,5.31363115]
[1765754641647,0.001,3063.8,3063.7,5.89410644]
[1765754641856,0.001,3063.8,3063.7,6.16203152]
[1765754642047,0.4736,3063.8,3063.7,5.68483152]
[1765754642850,0.001,3063.8,3063.7,6.16203152]
[1765754643641,0.001,3063.8,3063.7,6.61403152]
[1765754644260,0.001,3063.8,3063.7,6.16203152]
[1765754644670,0.001,3063.8,3063.7,6.61403152]
[1765754649596,0.001,3063.8,3063.7,23.51095714]
[1765754649757,0.001,3063.8,3063.7,18.8333309]
[1765754650189,0.001,3063.8,3063.7,8.8519189]
[1765754650458,0.001,3063.8,3063.7,6.16203152]
[1765754651074,0.076,3063.8,3063.7,4.76032752]
[1765754651561,0.076,3063.8,3063.7,5.16583152]
[1765754651761,0.076,3063.8,3063.7,4.76032752]
[1765754654536,0.076,3063.8,3063.7,5.16583152]
[1765754656373,0.076,3063.8,3063.7,4.25000644]
[1765754656590,0.5463,3063.8,3063.7,4.25000644]
[1765754656791,0.076,3063.8,3063.7,3.26402715]
[1765754657002,0.5463,3063.8,3063.4,6.5286936]
[1765754657202,0.4713,3063.8,3063.5,0.58047529]
[1765754657584,0.001,3063.8,3063.5,0.58047529]
[1765754657790,0.001,3063.8,3063.5,1.61783354]
[1765754658808,0.0729,3063.6,3063.5,1.61783354]
[1765754659006,0.0729,3063.6,3063.5,0.58047529]
[1765754659495,0.0729,3063.6,3063.5,3.84471553]
[1765754661199,0.5453,3063.6,3063.5,3.84471553]
[1765754663317,0.5453,3063.6,3063.1,3.84]
[1765754663616,0.4724,3063.6,3063.5,3.84471553]
[1765754663791,0.5493,3063.6,3063.5,3.84471553]
[1765754663989,0.0769,3063.6,3063.5,3.84471553]
[1765754664186,0.001,3063.8,3063.5,8.2970694]
[1765754664472,0.0729,3063.6,3063.5,3.84471553]
[1765754664783,0.5453,3063.6,3063.5,0.58047529]
[1765754665214,0.5453,3063.6,3063.5,3.84471553]
[1765754665709,0.0729,3063.6,3063.5,3.84471553]
[1765754666011,0.5453,3063.6,3063.5,0.58047529]
[1765754666319,0.5453,3063.6,3063.5,3.84471553]
[1765754666783,0.5453,3063.6,3063.5,0.58047529]
[1765754667519,0.5453,3063.6,3063.4,0.58047529]
[1765754667733,0.0047,3063.5,3063.4,0.58047529]
[1765754668096,0.4824,3063.5,3063.4,0.58047529]
[1765754668312,0.4824,3063.5,3063.3,3.26440831]
[1765754668618,0.0669,3063.4,3063.3,3.26440831]
[1765754669122,0.5446,3063.4,3063.3,3.26440831]
[1765754669322,0.5446,3063.4,3063.1,0.58047529]
[1765754669489,0.0053,3063.2,3063.1,3.8450668]
[1765754669894,0.483,3063.2,3063.1,3.8450668]
[1765754671426,0.483,3063.2,3063.0,0.002]
[1765754671634,0.0663,3063.1,3063.0,0.002]
[1765754672135,0.544,3063.1,3063.0,0.002]
[1765754673706,0.9767462,3063.1,3063.0,0.002]
[1765754673892,4.24141271,3063.1,3063.0,0.002]
[1765754674098,7.69445881,3063.1,3063.0,0.002]
[1765754674417,4.24141271,3063.1,3063.0,0.002]
[1765754675131,0.9767462,3063.1,3063.0,0.002]
[1765754678436,4.24141271,3063.1,3063.0,0.002]